bitfinex/quotes_ETHUSD_20250319
["timestamp","ask_amount","ask_price","bid_price","bid_amount"]
[1742390656655,5.76059,2013.9,2013.6,4.9662]
[1742390656859,5.76059,2013.9,2013.5,9.93269]
[1742390657055,3.0,2013.8,2013.2,4.9671]
[1742390657221,3.0,2013.8,2013.5,4.96639]
[1742390657663,4.96611,2013.7,2013.3,4.9669]
[1742390658257,4.96573,2013.8,2013.4,4.96672]
[1742390658463,4.96615,2013.7,2013.3,4.96691]
[1742390658759,3.0,2013.6,2012.8,5.30491]
[1742390659009,4.96746,2013.1,2012.5,0.3369]
[1742390659175,4.96818,2012.9,2012.4,4.96916]
[1742390659377,4.96772,2013.0,2012.5,4.96878]
[1742390659564,4.96815,2012.9,2012.5,4.96878]
[1742390659897,4.96807,2012.9,2012.5,4.96885]
[1742390660081,4.96829,2012.8,2012.3,4.96925]
[1742390660383,4.96829,2012.8,2012.4,4.96903]
[1742390660595,0.496829,2012.8,2012.2,4.96966]
[1742390660908,4.96889,2012.6,2012.2,4.96957]
[1742390661075,4.96889,2012.6,2011.9,0.3369]
[1742390661076,4.96962,2012.3,2011.9,0.3369]
[1742390661276,4.96962,2012.3,2011.9,4.97036]
[1742390661791,3.0,2012.3,2012.0,4.97006]
[1742390661967,7.96955,2012.3,2011.9,4.97042]
[1742390662309,3.7712,2012.2,2011.6,5.966]
[1742390662508,3.0,2012.0,2011.5,4.97139]
[1742390662665,7.97028,2012.0,2011.4,5.30832]
[1742390662999,4.97077,2011.8,2011.3,4.97179]
[1742390663196,1.270677,2011.7,2011.3,4.97181]
[1742390663406,3.0,2011.9,2011.3,4.9719]
[1742390663588,3.0,2011.9,2011.6,4.97113]
[1742390663773,7.97083,2011.8,2011.4,4.97156]
[1742390663980,0.82653197,2011.7,2011.2,4.97215]
[1742390664177,7.97067,2011.8,2011.3,9.94366]
[1742390664477,4.97135,2011.6,2011.1,4.97238]
[1742390664676,0.7593,2011.5,2011.2,4.97211]
[1742390665200,0.7593,2011.5,2011.1,4.97239]
[1742390665406,0.7593,2011.5,2010.9,4.97287]
[1742390665407,4.97166,2011.4,2010.9,4.97287]
[1742390665562,7.97228,2011.2,2010.8,4.97289]
[1742390666010,0.8302,2010.9,2010.4,4.97397]
[1742390666211,3.8302,2010.9,2010.5,4.97372]
[1742390666365,3.8302,2010.9,2010.4,4.97408]
[1742390666366,8.80318,2010.9,2010.4,4.97408]
[1742390666566,5.853498,2010.8,2010.4,4.97408]
[1742390666966,3.8302,2010.9,2010.6,4.97345]
[1742390667190,3.8302,2010.9,2010.7,4.97336]
[1742390667375,3.8302,2010.9,2010.6,4.97345]
[1742390667376,0.7676,2011.3,2010.9,4.97282]
[1742390667583,7.97228,2011.2,2010.8,4.97301]
[1742390667791,7.97222,2011.2,2010.7,4.97321]
[1742390667994,4.97222,2011.2,2010.7,4.97321]
[1742390668307,3.8244,2011.0,2010.2,4.97443]
[1742390668470,3.0,2010.6,2010.2,4.97443]
[1742390668671,3.0,2010.7,2010.2,4.97462]
[1742390668932,1.45481513,2010.9,2010.6,4.97351]
[1742390669216,3.0,2010.8,2010.4,4.97397]
[1742390669372,4.82250351,2010.8,2010.0,4.97512]
[1742390669573,1.45481513,2010.9,2010.5,4.9737]
[1742390669806,4.97338,2010.8,2010.3,4.97418]
[1742390670006,4.97348,2010.7,2010.2,4.97462]
[1742390670230,7.97314,2010.8,2009.9,28.4472]
[1742390670398,1.02523551,2010.8,2010.4,4.97395]
[1742390670587,3.8244,2011.0,2009.9,28.4472]
[1742390670789,0.8244,2011.0,2010.8,4.97298]
[1742390670989,4.348838,2011.3,2010.9,4.97266]
[1742390671231,3.0,2011.1,2010.8,4.97314]
[1742390671427,0.7749,2011.3,2010.7,4.97338]
[1742390671755,0.7581,2011.6,2011.2,4.97215]
[1742390671909,4.97142,2011.5,2011.1,4.9723]
[1742390672085,0.7581,2011.6,2011.5,4.97141]
[1742390672292,6.7071,2011.9,2011.5,4.97141]
[1742390672523,3.7581,2011.9,2011.6,4.97111]
[1742390672774,5.127934,2011.9,2011.6,4.97114]
[1742390673052,0.7581,2011.9,2011.7,4.9708]
[1742390673260,0.7732,2012.3,2011.9,4.97019]
[1742390673415,0.7732,2012.3,2012.0,4.97017]
[1742390673613,0.7732,2012.3,2012.0,4.97001]
[1742390673813,3.0,2012.1,2011.7,5.94]
[1742390674046,0.89072736,2012.1,2011.8,4.97052]
[1742390674351,12.93952,2012.2,2011.8,4.97048]
[1742390674535,9.93959,2012.2,2011.8,4.97048]
[1742390674734,4.97005,2012.1,2011.7,10.9109]
[1742390674957,4.97033,2012.0,2011.6,4.97107]
[1742390675245,7.97045,2011.9,2011.3,5.938]
[1742390675453,3.0,2011.9,2011.3,10.90975]
[1742390675612,3.0,2011.9,2011.0,3.0]
[1742390675613,3.79,2011.8,2011.0,5.939]
[1742390675818,3.0,2011.4,2011.0,5.939]
[1742390676064,3.0,2011.5,2011.2,4.97206]
[1742390676350,3.0,2011.5,2010.9,5.30978]
[1742390676351,4.97206,2011.3,2010.9,4.97288]
[1742390676513,6.541095,2011.4,2010.7,28.10837]
[1742390676709,6.541185,2011.4,2011.0,4.97254]
[1742390676914,6.541185,2011.4,2010.7,23.135]
[1742390677139,6.541185,2011.4,2010.7,5.948]
[1742390677140,4.97258,2011.1,2010.7,5.948]
[1742390677348,3.9541185,2011.3,2011.0,4.97259]
[1742390677561,0.7723,2011.4,2011.1,4.9722]
[1742390677723,3.7723,2011.4,2010.5,3.3369]
[1742390677918,4.97224,2011.2,2010.8,4.9729]
[1742390678123,3.0,2011.1,2010.9,4.97289]
[1742390678358,7.97226,2011.2,2010.9,4.97289]
[1742390678527,0.8123,2011.1,2010.4,4.9739]
[1742390678716,4.97348,2010.7,2010.4,4.9739]
[1742390679151,3.0,2010.8,2010.6,4.97361]
[1742390679453,7.97297,2010.9,2010.5,4.97383]
[1742390679671,7.97297,2010.9,2010.4,4.97395]
[1742390679672,5.14573813,2010.9,2010.3,4.97438]
[1742390679818,3.0,2011.0,2010.7,4.97328]
[1742390680142,7.97299,2010.9,2010.5,4.97377]
[1742390680341,7.97303,2010.9,2010.5,4.9738]
[1742390680552,7.97303,2010.9,2010.6,9.947]
[1742390680553,3.0,2010.9,2010.6,9.947]
[1742390680759,0.8123,2011.1,2010.9,4.97277]
[1742390680959,0.8123,2011.1,2010.9,4.9728]
[1742390681260,0.8123,2011.1,2010.9,4.97276]
[1742390681458,0.8123,2011.1,2011.0,4.97265]
[1742390681644,0.8123,2011.1,2010.5,6.2569]
[1742390681645,4.76875134,2011.8,2011.1,5.3093]
[1742390681844,4.96957,2012.3,2011.9,4.97021]
[1742390682046,3.576377,2012.2,2011.7,6.028]
[1742390682355,3.0,2012.2,2011.9,4.97025]
[1742390682883,7.96961,2012.3,2011.9,4.97025]
[1742390683085,7.96961,2012.3,2011.9,9.94049]
[1742390683292,0.876381,2012.2,2012.1,4.96993]
[1742390683460,0.7942,2012.4,2012.0,4.97012]
[1742390683461,3.7942,2012.4,2012.0,4.97012]
[1742390683661,3.7942,2012.4,2012.1,4.9699]
[1742390684007,3.7942,2012.4,2011.7,6.028]
[1742390684008,8.7635,2012.4,2012.0,9.94018]
[1742390684178,8.7635,2012.4,2011.7,10.99891]
[1742390684179,3.0,2012.3,2011.7,6.028]
[1742390684404,8.76347,2012.4,2012.0,4.97005]
[1742390684690,5.167443,2012.4,2012.1,4.96975]
[1742390684895,3.0,2012.2,2011.8,4.97067]
[1742390685064,2.167443,2012.4,2011.2,0.3369]
[1742390685065,9.93619434,2012.4,2011.2,0.3369]
[1742390685271,4.97061,2011.9,2011.3,5.993]
[1742390685592,3.0,2011.8,2011.3,5.993]
[1742390685799,3.0,2011.8,2011.6,4.97112]
[1742390686089,3.0,2011.8,2011.5,4.97134]
[1742390686296,0.7552,2011.7,2011.3,5.993]
[1742390686467,3.7552,2011.7,2011.0,10.95362]
[1742390686661,13.95118,2012.0,2011.3,0.3369]
[1742390686662,3.8284,2012.0,2011.3,0.3369]
[1742390686882,0.8284,2012.0,2011.7,4.9709]
[1742390687068,0.8284,2012.0,2011.7,4.9708]
[1742390687270,4.96973,2012.2,2012.0,4.9701]
[1742390687271,3.0,2012.2,2012.0,4.9701]
[1742390687475,0.8284,2012.3,2011.9,4.97029]
[1742390687665,3.0,2012.2,2011.5,4.97118]
[1742390687890,4.97029,2012.0,2011.6,4.97108]
[1742390688095,9.94112,2011.9,2011.5,4.97136]
[1742390688373,4.97089,2011.8,2011.4,4.97156]
[1742390688571,4.97103,2011.7,2011.3,4.9718]
[1742390688797,5.75769,2011.6,2011.2,4.97204]
[1742390689111,5.75769,2011.6,2011.1,5.975]
[1742390689294,3.0,2011.8,2011.5,4.97123]
[1742390689502,8.84981,2011.8,2011.4,4.9715]
[1742390689698,8.84981,2011.8,2011.4,9.94304]
[1742390689869,4.97095,2011.7,2011.4,4.9715]
[1742390690074,4.97095,2011.7,2011.3,4.97183]
[1742390690274,4.97095,2011.7,2011.1,5.975]
[1742390690511,0.966956,2011.7,2011.4,4.97142]
[1742390690709,0.966956,2011.7,2011.1,5.975]
[1742390691007,5.937956,2011.7,2011.3,9.94338]
[1742390691185,0.966956,2011.7,2011.4,4.97162]
[1742390691382,0.8196,2011.9,2011.3,4.97189]
[1742390691587,0.8196,2011.9,2011.7,4.97077]
[1742390691789,3.0,2011.8,2011.5,4.97139]
[1742390691985,4.97096,2011.7,2011.4,4.97163]
[1742390692188,4.97096,2011.7,2011.3,9.94364]
[1742390692394,7.97094,2011.7,2011.3,4.97172]
[1742390692589,3.0,2011.7,2011.4,4.97162]
[1742390692794,3.0,2011.7,2011.4,4.97153]
[1742390692995,8.849769,2011.8,2011.4,4.97151]
[1742390693195,3.879019,2011.8,2011.4,4.97151]
[1742390693514,8.849739,2011.8,2011.4,4.9715]
[1742390693720,3.0,2011.8,2011.6,4.97107]
[1742390693879,0.8196,2011.9,2011.8,4.97067]
[1742390694084,0.8196,2011.9,2011.7,4.9708]
[1742390694085,0.8196,2011.9,2011.7,4.97077]
[1742390694283,0.8196,2011.9,2011.7,4.97072]
[1742390694715,0.8196,2011.9,2011.8,4.97067]
[1742390694900,0.8196,2011.9,2011.6,4.97114]
[1742390695212,8.79003,2011.9,2011.6,4.97106]
[1742390695431,8.79005,2011.9,2011.6,4.97114]
[1742390695734,8.79005,2011.9,2011.5,4.97131]
[1742390695904,4.97077,2011.8,2011.3,4.97187]
[1742390696232,3.0,2011.8,2011.5,9.94244]
[1742390696531,3.54347508,2011.9,2011.6,4.97112]
[1742390696693,4.96944,2012.3,2012.0,4.97013]
[1742390696892,4.96959,2012.3,2011.9,4.97023]
[1742390697200,7.96945,2012.3,2011.8,4.97053]
[1742390697402,3.0,2012.2,2011.9,4.97033]
[1742390697701,7.96968,2012.2,2011.8,4.97053]
[1742390697917,7.96968,2012.2,2011.9,4.97041]
[1742390698246,9.340545,2012.2,2011.8,4.97053]
[1742390698412,9.340545,2012.2,2011.8,9.94107]
[1742390698613,9.340545,2012.2,2011.8,4.97053]
[1742390698816,4.370865,2012.2,2011.9,4.97021]
[1742390699133,5.73869,2012.4,2012.1,4.96993]
[1742390699134,3.7695,2012.4,2012.1,4.96993]
[1742390699356,3.0,2012.2,2011.9,9.94046]
[1742390699654,3.0,2012.2,2011.9,4.9702]
[1742390700049,7.96984,2012.2,2011.7,4.97084]
[1742390700256,7.96984,2012.2,2011.0,5.52263]
[1742390700257,3.0,2012.3,2011.3,0.3369]
[1742390700553,4.97067,2011.8,2011.4,4.97149]
[1742390700851,3.0,2011.8,2011.5,4.97128]
[1742390701049,3.0,2011.8,2011.2,4.97207]
[1742390701050,3.0,2011.8,2011.3,4.97186]
[1742390701252,3.0,2011.8,2011.6,4.97103]
[1742390701567,3.0,2011.8,2011.5,4.97138]
[1742390701716,4.97104,2011.7,2011.3,4.97189]
[1742390702053,4.97104,2011.7,2011.3,4.97166]
[1742390702054,0.7534,2011.6,2011.3,4.97166]
[1742390702210,5.72467,2011.6,2011.2,9.94416]
[1742390702411,3.0,2011.4,2011.1,4.97236]
[1742390702611,7.97176,2011.4,2010.9,4.97275]
[1742390702929,0.797176,2011.3,2010.7,4.97327]
[1742390703137,3.0,2011.1,2010.4,4.97413]
[1742390703329,4.97336,2010.8,2010.4,4.97401]
[1742390703530,4.97336,2010.8,2010.4,9.94797]
[1742390703732,3.0,2010.9,2010.2,10.86359]
[1742390703932,7.9729,2010.9,2010.5,4.97383]
[1742390704127,4.97343,2010.7,2010.4,4.97412]
[1742390704327,4.97384,2010.6,2010.1,4.97487]
[1742390704529,7.97397,2010.5,2010.1,4.97487]
[1742390704729,4.376791,2010.5,2010.0,10.85511]
[1742390704920,9.350791,2010.5,2010.1,4.9747]
[1742390705125,4.97423,2010.4,2010.0,10.85501]
[1742390705325,4.97423,2010.4,2009.8,17.5239]
[1742390705326,4.97442,2010.3,2009.9,4.97534]
[1742390705661,0.8164,2010.2,2009.6,4.97594]
[1742390705819,4.9749,2010.1,2009.7,4.97565]
[1742390706151,4.811265,2010.2,2009.8,4.97542]
[1742390706152,9.785905,2010.2,2009.8,4.97542]
[1742390706325,9.785905,2010.2,2009.3,5.876]
[1742390706526,4.97512,2010.0,2009.5,4.97634]
[1742390706731,0.9785905,2010.1,2009.8,4.97561]
[1742390706930,9.786035,2010.2,2009.9,4.97536]
[1742390707135,9.786035,2010.2,2009.8,4.97561]
[1742390707136,9.786005,2010.2,2009.8,4.97549]
[1742390707739,3.0,2009.9,2009.5,4.97625]
[1742390708045,3.0,2010.0,2009.7,4.97567]
[1742390708222,0.8164,2010.2,2009.5,4.97636]
[1742390708426,1.78574,2010.2,2009.4,4.97641]
[1742390708663,1.78574,2010.2,2009.8,4.97544]
[1742390708881,3.0,2010.1,2009.7,4.97579]
[1742390709054,7.97488,2010.1,2009.6,4.97593]
[1742390709226,5.951212,2010.0,2009.6,4.97593]
[1742390709426,0.976062,2010.0,2009.7,4.97583]
[1742390709654,0.976062,2010.0,2009.6,4.97597]
[1742390709927,10.85117,2010.4,2010.1,4.97485]
[1742390709928,8.862,2010.4,2010.1,4.97485]
[1742390710230,4.97452,2010.3,2009.8,4.97555]
[1742390710432,3.0,2010.1,2009.8,4.97555]
[1742390710935,4.97544,2009.9,2009.4,4.97638]
[1742390711253,4.97562,2009.8,2009.4,4.97638]
[1742390711747,4.97589,2009.7,2009.3,4.97685]
[1742390711943,0.574304,2009.9,2009.6,4.97594]
[1742390712148,3.7676,2010.0,2009.9,4.97537]
[1742390712349,5.76602,2010.2,2009.7,4.97566]
[1742390712543,0.7912,2010.2,2009.5,0.3369]
[1742390712744,8.76604,2010.2,2009.6,4.97594]
[1742390712925,3.0,2010.0,2009.7,4.97574]
[1742390713126,3.0,2010.0,2009.6,4.97594]
[1742390713127,4.674104,2010.0,2009.6,4.97594]
[1742390713349,3.0,2009.8,2009.4,4.97657]
[1742390713537,3.0,2009.8,2009.5,4.97634]
[1742390713727,3.0,2010.1,2009.3,5.852]
[1742390713933,3.0,2009.8,2009.4,4.97644]
[1742390714185,4.97535,2010.0,2009.5,4.97634]
[1742390714369,4.97535,2010.0,2009.3,5.852]
[1742390714370,3.0,2010.1,2009.7,4.97572]
[1742390714568,7.97501,2010.1,2009.7,4.97572]
[1742390714780,3.0,2010.1,2009.7,9.95144]
[1742390714983,3.0,2010.1,2009.3,5.852]
[1742390715184,3.0,2010.1,2009.7,4.97582]
[1742390715369,3.0,2010.1,2009.9,4.97526]
[1742390715574,0.7912,2010.2,2010.1,4.97487]
[1742390715892,4.97413,2010.4,2010.0,4.97506]
[1742390716098,3.0,2010.2,2009.3,4.97685]
[1742390716384,7.97488,2010.1,2009.5,4.97636]
[1742390716681,3.0,2010.1,2009.7,4.97585]
[1742390716883,3.872708,2010.1,2009.8,4.97553]
[1742390717282,3.0,2009.9,2009.6,4.97594]
[1742390717584,3.0,2009.9,2009.8,4.97561]
[1742390717909,3.7522,2010.2,2009.9,4.97523]
[1742390718088,3.7522,2010.2,2009.9,9.95049]
[1742390718449,3.7522,2010.2,2010.1,4.97487]
[1742390718702,3.7522,2010.2,2009.6,4.97607]
[1742390718908,3.7522,2010.2,2010.0,4.9749]
[1742390719063,3.0,2010.2,2009.9,4.97534]
[1742390719390,3.0,2010.2,2009.7,5.815]
[1742390719391,0.86844821,2010.2,2009.5,4.97636]
[1742390719686,3.0,2010.1,2009.7,4.97566]
[1742390719993,3.0,2010.3,2010.0,4.97497]
[1742390720196,5.79899,2010.5,2010.1,4.97478]
[1742390720494,3.0,2010.4,2010.1,4.97476]
[1742390720797,4.97447,2010.3,2009.9,4.97532]
[1742390720949,4.97503,2010.1,2009.7,4.97565]
[1742390721158,4.258003,2010.0,2009.6,4.97601]
[1742390721473,1.258003,2010.0,2009.7,4.97578]
[1742390721690,1.258003,2010.0,2009.8,4.9755]
[1742390721871,0.7605,2010.0,2009.8,4.97541]
[1742390722068,0.7605,2010.0,2009.4,4.97639]
[1742390722298,0.7605,2010.0,2008.9,7.97769]
[1742390722299,4.97597,2009.7,2008.9,0.3369]
[1742390722498,9.95198,2009.7,2009.3,4.97676]
[1742390722669,6.055467,2009.7,2009.4,4.97659]
[1742390722855,1.079497,2009.7,2009.4,4.97659]
[1742390723304,5.73563,2010.0,2009.0,4.9776]
[1742390723503,0.7605,2010.0,2009.6,4.97608]
[1742390723806,0.7605,2010.0,2009.6,4.97599]
[1742390723807,8.73566,2010.0,2009.6,4.97599]
[1742390724119,4.97575,2009.8,2009.4,4.97649]
[1742390724259,9.95157,2009.8,2009.4,4.97648]
[1742390724455,5.712567,2010.0,2009.3,4.97684]
[1742390724696,2.712567,2010.0,2009.4,4.9766]
[1742390724904,7.9757,2009.8,2009.4,4.9766]
[1742390725286,5.5466267,2009.9,2009.6,4.97608]
[1742390725287,3.5712567,2009.9,2009.6,4.97608]
[1742390725597,7.97572,2009.8,2009.4,4.97646]
[1742390725761,3.0,2009.7,2009.4,4.97646]
[1742390725962,7.97574,2009.8,2009.4,4.97646]
[1742390726189,5.83067967,2009.7,2009.3,4.97675]
[1742390726499,0.85469967,2009.7,2008.9,6.1259]
[1742390726706,3.0,2009.9,2009.6,4.97598]
[1742390726864,7.97548,2009.9,2009.5,4.97636]
[1742390727208,3.0,2009.9,2009.6,4.97595]
[1742390727713,3.0,2009.9,2009.4,0.3369]
[1742390727714,4.97564,2009.8,2009.5,4.97634]
[1742390727937,4.5662667,2009.9,2009.0,5.785]
[1742390728110,5.8057,2009.5,2008.9,4.9776]
[1742390728292,4.97796,2008.9,2008.2,4.97958]
[1742390728490,3.0,2008.8,2008.5,4.97873]
[1742390728695,8.558706,2008.9,2008.5,4.9787]
[1742390728890,8.558706,2008.9,2008.3,4.97925]
[1742390728891,3.580726,2008.9,2008.3,4.97925]
[1742390729227,0.8293,2009.1,2009.0,4.9776]
[1742390729362,0.8293,2009.1,2008.6,0.3369]
[1742390729559,3.8293,2009.1,2008.8,4.97789]
[1742390729763,3.8293,2009.1,2008.3,0.3369]
[1742390729764,3.8293,2009.1,2008.9,4.97765]
[1742390729961,3.8293,2009.1,2008.7,4.97823]
[1742390730201,4.97767,2009.0,2008.5,4.97866]
[1742390730409,4.97784,2008.9,2008.5,4.97866]
[1742390730591,3.8293,2009.1,2008.4,4.97891]
[1742390730767,4.97812,2008.8,2008.4,4.97891]
[1742390730965,5.475952,2008.8,2008.4,4.97906]
[1742390731207,5.475952,2008.8,2008.2,5.786]
[1742390731208,0.497812,2008.8,2008.2,5.786]
[1742390731410,0.55,2009.0,2008.4,4.97899]
[1742390731710,4.97784,2008.9,2008.3,4.97928]
[1742390731891,0.55,2009.0,2008.3,4.97928]
[1742390731892,5.80558,2008.7,2008.3,4.97928]
[1742390732214,4.97884,2008.5,2008.0,0.3369]
[1742390732412,7.97914,2008.4,2008.0,4.97998]
[1742390732565,3.55,2008.6,2008.1,4.97959]
[1742390732916,3.0,2008.4,2008.0,4.97998]
[1742390733115,3.0,2008.6,2008.3,4.97923]
[1742390733411,3.0,2008.6,2007.7,0.3369]
[1742390733412,0.8271,2008.7,2008.1,4.97983]
[1742390733611,3.8271,2008.7,2008.3,4.97933]
[1742390733765,3.8271,2008.7,2008.5,4.97869]
[1742390733766,1.707633,2008.7,2008.5,4.97869]
[1742390734105,0.8271,2008.7,2008.4,4.97904]
[1742390734310,0.8271,2008.7,2008.2,4.97934]
[1742390734311,4.097211,2008.4,2007.8,10.74157]
[1742390734611,8.80554,2008.7,2008.3,4.97929]
[1742390734793,4.9786,2008.6,2008.1,4.97958]
[1742390735102,4.97909,2008.4,2008.0,4.98002]
[1742390735305,0.995802,2008.3,2008.1,4.97967]
[1742390735520,3.0,2008.5,2008.1,4.97967]
[1742390735707,3.0,2008.5,2008.2,4.97954]
[1742390735893,7.97886,2008.5,2008.1,4.97967]
[1742390736202,4.97882,2008.6,2008.3,4.97909]
[1742390736203,3.0,2008.6,2008.3,4.97909]
[1742390736506,3.8271,2008.7,2008.5,4.97874]
[1742390736680,8.80545,2008.7,2008.4,4.97904]
[1742390736898,3.8271,2008.7,2008.4,4.97904]
[1742390737084,1.707641,2008.7,2008.2,4.97945]
[1742390737279,3.0,2008.6,2008.3,4.97918]
[1742390737595,12.9574,2008.6,2008.2,4.9794]
[1742390737809,7.9786,2008.6,2008.1,10.74678]
[1742390738024,4.76875134,2008.5,2008.1,10.74666]
[1742390738213,1.27473513,2008.4,2008.1,10.74666]
[1742390738411,9.74768134,2008.5,2008.1,10.74666]
[1742390738609,7.97912,2008.4,2008.1,5.767]
[1742390738809,7.97912,2008.4,2007.8,10.73451]
[1742390738810,3.0,2008.4,2007.8,10.73451]
[1742390739122,4.76875134,2008.5,2008.2,4.9794]
[1742390739284,4.76875134,2008.5,2008.3,9.95853]
[1742390739621,0.8271,2008.7,2008.0,4.98007]
[1742390739922,3.8271,2008.7,2008.6,4.97859]
[1742390740088,3.8271,2008.7,2008.4,4.97885]
[1742390740286,4.76875134,2008.8,2008.4,4.97885]
[1742390740287,4.76875134,2008.8,2008.5,4.97868]
[1742390740626,4.76875134,2008.8,2008.2,5.748]
[1742390740798,4.76875134,2008.8,2008.5,4.97873]
[1742390740998,4.76875134,2008.8,2008.6,9.95701]
[1742390741324,9.74696134,2008.8,2008.4,4.97904]
[1742390741486,4.76875134,2008.8,2008.2,5.748]
[1742390741692,4.76875134,2008.8,2008.5,4.97867]
[1742390742001,3.76,2008.9,2008.6,4.97852]
[1742390742201,8.73785,2008.9,2008.5,4.9788]
[1742390742400,9.74686134,2008.8,2008.4,4.97901]
[1742390742633,7.97846,2008.7,2008.3,4.97913]
[1742390742787,0.7798,2008.4,2008.1,4.9798]
[1742390742989,5.7589,2008.4,2008.1,4.9798]
[1742390743325,2.33044913,2008.4,2007.9,5.728]
[1742390743621,2.33044913,2008.4,2008.1,9.95947]
[1742390743788,7.30957913,2008.4,2007.9,5.728]
[1742390743988,2.33044913,2008.4,2008.2,4.97938]
[1742390744308,5.75901,2008.4,2008.0,4.97996]
[1742390744512,5.75901,2008.4,2007.6,5.31781]
[1742390744513,4.76875134,2008.2,2007.6,5.31781]
[1742390744695,4.76875134,2008.2,2008.0,4.98007]
[1742390744892,4.76875134,2008.2,2007.7,5.717]
[1742390744893,3.7798,2008.4,2008.1,4.97983]
[1742390745090,3.7798,2008.4,2008.2,4.97944]
[1742390745291,5.57765134,2008.7,2008.5,4.97873]
[1742390745499,5.57765134,2008.7,2008.6,4.97859]
[1742390745702,5.57765134,2008.7,2008.4,4.97908]
[1742390745991,5.57765134,2008.7,2008.4,4.97891]
[1742390746422,5.57765134,2008.7,2008.5,4.97878]
[1742390746590,5.57765134,2008.7,2008.5,4.97872]
[1742390746791,5.57765134,2008.7,2008.6,4.97859]
[1742390746987,5.57765134,2008.7,2008.5,4.97867]
[1742390747214,5.57765134,2008.7,2008.5,9.95735]
[1742390747415,5.57765134,2008.7,2008.6,4.97859]
[1742390747693,30.91362,2009.0,2008.8,4.97809]
[1742390747694,3.0,2008.9,2008.8,4.97809]
[1742390748200,3.0,2008.9,2008.7,4.97813]
[1742390748529,0.8098,2009.2,2008.5,10.69363]
[1742390748699,0.8098,2009.2,2009.1,4.97735]
[1742390748894,4.76875134,2009.3,2009.2,4.9771]
[1742390749085,0.8321,2009.5,2009.2,4.9771]
[1742390749290,0.8321,2009.5,2009.1,4.97733]
[1742390749291,2.85288513,2009.4,2009.1,4.97729]
[1742390749528,3.0,2009.3,2009.1,4.9772]
[1742390749694,2.85288513,2009.4,2009.1,4.9772]
[1742390749894,2.85288513,2009.4,2009.0,4.97759]
[1742390749895,7.76875134,2009.3,2009.0,4.97759]
[1742390750231,12.74579134,2009.3,2008.9,4.97772]
[1742390750731,3.0,2009.2,2008.9,4.97772]
[1742390750907,3.0,2009.2,2008.9,4.97768]
[1742390751294,3.0,2009.2,2009.0,4.9774]
[1742390751627,4.76875134,2009.3,2009.2,4.9771]
[1742390752741,4.76875134,2009.6,2009.4,4.9766]
[1742390752917,5.56265134,2009.8,2009.6,4.97587]
[1742390753097,6.77306614,2009.8,2009.6,4.97587]
[1742390753297,3.0,2009.7,2009.6,4.97587]
[1742390753798,6.77306614,2009.8,2009.7,4.97586]
[1742390754132,5.54695134,2010.1,2010.0,4.97512]
[1742390754339,8.39304647,2010.1,2010.0,4.97512]
[1742390754497,5.53025134,2010.4,2009.8,4.97556]
[1742390754696,5.53025134,2010.7,2009.9,5.36178111]
[1742390754924,15.47732134,2010.7,2010.3,4.97428]
[1742390755129,1.54773213,2010.6,2010.3,4.97422]
[1742390755330,6.52155213,2010.6,2010.2,9.94898]
[1742390755500,4.76875134,2010.4,2010.2,4.97439]
[1742390755697,4.76875134,2010.4,2010.3,4.97438]
[1742390755897,4.76875134,2010.4,2010.2,4.97439]
[1742390756101,4.76875134,2010.4,2010.1,10.67583]
[1742390756335,4.76875134,2010.4,2010.2,4.97456]
[1742390756544,4.76875134,2010.4,2010.3,4.97438]
[1742390756921,5.53025134,2010.7,2010.5,4.97386]
[1742390757112,5.53025134,2010.7,2010.1,10.67586]
[1742390757311,7.97371,2010.6,2010.3,4.97426]
[1742390757635,4.76875134,2010.4,2010.2,4.97462]
[1742390757846,4.76875134,2010.4,2009.9,5.31221]
[1742390757847,4.76875134,2010.4,2009.9,6.0369]
[1742390758010,4.76875134,2010.4,2010.1,4.97467]
[1742390758205,4.76875134,2010.4,2010.0,4.97503]
[1742390758411,0.47687513,2010.3,2010.1,4.97476]
[1742390758648,0.47687513,2010.3,2010.0,9.95012]
[1742390758940,3.47687513,2010.3,2009.6,0.3369]
[1742390759142,9.74367134,2010.1,2009.6,10.67503]
[1742390759440,4.97529,2010.0,2009.6,10.67496]
[1742390759605,4.76875134,2009.8,2009.6,5.699]
[1742390759808,4.76875134,2009.8,2009.6,10.67503]
[1742390760030,0.7909,2009.7,2009.2,10.67587]
[1742390760225,4.76875134,2009.5,2009.4,4.9766]
[1742390760551,4.76875134,2009.5,2009.3,4.97673]
[1742390760705,4.76875134,2009.5,2009.4,4.9766]
[1742390761132,3.7909,2009.7,2009.4,4.9766]
[1742390761303,5.64197413,2009.7,2009.4,4.97645]
[1742390761505,4.76875134,2009.5,2009.0,5.31433]
[1742390761706,5.64197413,2009.7,2008.3,6.14]
[1742390761707,4.76875134,2009.2,2008.9,5.699]
[1742390761908,4.97778,2009.0,2008.6,4.97857]
[1742390762144,7.76875134,2008.9,2008.6,4.97847]
[1742390762443,7.76875134,2008.9,2008.7,4.97833]
[1742390762741,7.76875134,2008.9,2008.6,4.97846]
[1742390762956,7.76875134,2008.9,2008.7,4.97832]
[1742390763239,3.7925,2009.2,2009.0,4.97748]
[1742390763405,3.0,2009.2,2008.9,4.97781]
[1742390763606,3.0,2009.2,2009.1,4.97735]